Workbook

Sheet Teeth = 17
A1: К-во зубьев | B1: 17 | C1: 17
A2: Угол | B2: =360/B1 -> 21.17647059
A3: Номер впадины | B3: Угол десятичный | C3: Угол град-мин-сек
A4: 0 | B4: =$B$2 * A4 -> 0 | C4: =decConvert(B4) -> 0° 0' 0"
A5: 1 | B5: =$B$2 * A5 -> 21.17647059 | C5: =decConvert(B5) -> 21° 10' 35,29"
A6: 2 | B6: =$B$2 * A6 -> 42.35294118 | C6: =decConvert(B6) -> 42° 21' 10,58"
A7: 3 | B7: =$B$2 * A7 -> 63.52941176 | C7: =decConvert(B7) -> 63° 31' 45,88"
A8: 4 | B8: =$B$2 * A8 -> 84.70588235 | C8: =decConvert(B8) -> 84° 42' 21,17"
A9: 5 | B9: =$B$2 * A9 -> 105.8823529 | C9: =decConvert(B9) -> 105° 52' 56,46"
A10: 6 | B10: =$B$2 * A10 -> 127.0588235 | C10: =decConvert(B10) -> 127° 3' 31,75"
A11: 7 | B11: =$B$2 * A11 -> 148.2352941 | C11: =decConvert(B11) -> 148° 14' 7,04"
A12: 8 | B12: =$B$2 * A12 -> 169.4117647 | C12: =decConvert(B12) -> 169° 24' 42,34"
A13: 9 | B13: =$B$2 * A13 -> 190.5882353 | C13: =decConvert(B13) -> 190° 35' 17,66"
A14: 10 | B14: =$B$2 * A14 -> 211.7647059 | C14: =decConvert(B14) -> 211° 45' 52,96"
A15: 11 | B15: =$B$2 * A15 -> 232.9411765 | C15: =decConvert(B15) -> 232° 56' 28,25"
A16: 12 | B16: =$B$2 * A16 -> 254.1176471 | C16: =decConvert(B16) -> 254° 7' 3,54"
A17: 13 | B17: =$B$2 * A17 -> 275.2941176 | C17: =decConvert(B17) -> 275° 17' 38,83"
A18: 14 | B18: =$B$2 * A18 -> 296.4705882 | C18: =decConvert(B18) -> 296° 28' 14,12"
A19: 15 | B19: =$B$2 * A19 -> 317.6470588 | C19: =decConvert(B19) -> 317° 38' 49,42"
A20: 16 | B20: =$B$2 * A20 -> 338.8235294 | C20: =decConvert(B20) -> 338° 49' 24,71"
A21: 17 | B21: =$B$2 * A21 -> 360 | C21: =decConvert(B21) -> 360° 0' 0"
